fUSD/lending_fUSD_20260510
["ID","MTS","AMOUNT","RATE_DAILY","PERIOD"]
[421945414,1778362240000,-150.0,0.00023544,4]
[421945417,1778362240000,-150.0,0.00023562,4]
[421945415,1778362240000,-150.0,0.00023544,4]
[421945419,1778362240000,-150.0,0.00023588,4]
[421945420,1778362240000,-282.0,0.00023591,2]
[421945418,1778362240000,-150.0,0.0002357,4]
[421945416,1778362240000,-150.0,0.00023544,4]
[421945422,1778362240000,-226.0,0.00023591,2]
[421945423,1778362240000,-150.0,0.000236,4]
[421945432,1778362240000,-150.0,0.00023669,4]
[421945429,1778362240000,-150.0,0.00023649,4]
[421945425,1778362240000,-150.0,0.00023615,4]
[421945428,1778362240000,-150.0,0.00023646,4]
[421945426,1778362240000,-150.0,0.00023625,4]
[421945424,1778362240000,-150.0,0.00023607,4]
[421945427,1778362240000,-150.0,0.00023641,4]
[421945431,1778362240000,-150.0,0.00023668,4]
[421945430,1778362240000,-150.0,0.0002366,4]
[421945381,1778362240000,-150.0,0.0002326,4]
[421945410,1778362240000,-150.0,0.00023504,4]
[421945411,1778362240000,-150.0,0.00023509,4]
[421945421,1778362240000,-150.0,0.00023591,2]
[421945404,1778362240000,-150.0,0.00023432,4]
[421945407,1778362240000,-150.0,0.00023482,4]
[421945385,1778362240000,-150.0,0.00023294,4]
[421945388,1778362240000,-150.0,0.00023324,4]
[421945384,1778362240000,-280.89,0.0002328,2]
[421945383,1778362240000,-150.0,0.00023271,4]
[421945433,1778362240000,-150.0,0.00023684,4]
[421945379,1778362240000,-150.0,0.00023244,4]
[421945386,1778362240000,-150.0,0.00023297,4]
[421945390,1778362240000,-150.0,0.00023341,4]
[421945391,1778362240000,-150.0,0.00023341,4]
[421945401,1778362240000,-150.0,0.00023419,4]
[421945392,1778362240000,-150.0,0.00023348,4]
[421945382,1778362240000,-150.0,0.00023264,4]
[421945393,1778362240000,-150.0,0.0002335,4]
[421945406,1778362240000,-150.0,0.00023456,4]
[421945403,1778362240000,-150.0,0.0002343,4]
[421945405,1778362240000,-150.0,0.00023443,4]
[421945402,1778362240000,-151.61,0.00023425,2]
[421945399,1778362240000,-150.0,0.00023403,4]
[421945395,1778362240000,-150.0,0.00023377,4]
[421945398,1778362240000,-150.0,0.00023382,4]
[421945400,1778362240000,-150.0,0.00023413,4]
[421945396,1778362240000,-150.0,0.00023382,4]
[421945394,1778362240000,-150.0,0.00023357,4]
[421945397,1778362240000,-150.0,0.00023382,4]
[421945478,1778362241000,-150.0,0.00024008,4]
[421945476,1778362241000,-735.0,0.00024,2]
[421945480,1778362241000,-150.0,0.0002402,4]
[421945475,1778362241000,-539.0,0.00024,2]
[421945473,1778362241000,-150.0,0.00023986,4]
[421945465,1778362241000,-150.0,0.00023933,4]
[421945470,1778362241000,-150.0,0.00023963,4]
[421945471,1778362241000,-280.89,0.00023965,2]
[421945469,1778362241000,-150.0,0.00023959,4]
[421945462,1778362241000,-150.0,0.00023885,4]
[421945474,1778362241000,-150.0,0.00023991,4]
[421945472,1778362241000,-150.0,0.00023981,4]
[421945477,1778362241000,-207.0,0.00024,2]
[421945486,1778362241000,-150.0,0.00024091,4]
[421945482,1778362241000,-150.0,0.00024042,4]
[421945481,1778362241000,-150.0,0.00024038,4]
[421945488,1778362241000,-150.0,0.00024106,4]
[421945489,1778362241000,-150.0,0.00024113,4]
[421945492,1778362241000,-150.0,0.00024144,4]
[421945491,1778362241000,-150.0,0.0002412,4]
[421945490,1778362241000,-150.0,0.00024118,4]
[421945483,1778362241000,-150.0,0.00024044,4]
[421945484,1778362241000,-150.0,0.00024052,4]
[421945487,1778362241000,-150.0,0.00024104,4]
[421945485,1778362241000,-150.0,0.00024065,4]
[421945493,1778362241000,-150.0,0.00024153,4]
[421945464,1778362241000,-150.0,0.00023919,4]
[421945479,1778362241000,-150.0,0.00024012,4]
[421945463,1778362241000,-150.0,0.00023906,4]
[421945436,1778362241000,-1000.0,0.0002372,2]
[421945459,1778362241000,-150.0,0.00023869,4]
[421945434,1778362241000,-150.0,0.00023694,4]
[421945443,1778362241000,-150.0,0.00023747,4]
[421945441,1778362241000,-150.0,0.00023747,4]
[421945438,1778362241000,-150.0,0.00023721,4]
[421945495,1778362241000,-150.0,0.00024169,4]
[421945435,1778362241000,-206.88,0.00023719,2]
[421945439,1778362241000,-150.0,0.00023728,4]
[421945442,1778362241000,-150.0,0.00023747,4]
[421945444,1778362241000,-150.0,0.00023747,4]
[421945440,1778362241000,-150.0,0.00023732,4]
[421945437,1778362241000,-315.54744385,0.0002372,2]
[421945445,1778362241000,-150.0,0.00023768,4]
[421945446,1778362241000,-150.0,0.00023774,4]
[421945461,1778362241000,-150.0,0.0002388,4]
[421945447,1778362241000,-500.0,0.00023788,2]
[421945449,1778362241000,-150.0,0.000238,4]
[421945454,1778362241000,-150.0,0.00023852,4]
[421945455,1778362241000,-150.0,0.00023853,4]
[421945450,1778362241000,-34376.29544996,0.00023804,2]
[421945451,1778362241000,-150.0,0.00023806,4]
[421945452,1778362241000,-150.0,0.00023827,4]
[421945453,1778362241000,-150.0,0.00023849,4]
[421945457,1778362241000,-150.0,0.00023869,4]
[421945467,1778362241000,-150.0,0.0002395,4]
[421945466,1778362241000,-150.0,0.00023936,4]
[421945468,1778362241000,-150.0,0.0002395,4]
[421945456,1778362241000,-150.0,0.00023857,4]
[421945460,1778362241000,-150.0,0.00023869,4]
[421945448,1778362241000,-150.0,0.00023794,4]
[421945497,1778362241000,-2056.63,0.00024174,2]
[421945494,1778362241000,-150.0,0.00024153,4]
[421945498,1778362241000,-150.0,0.00024188,4]
[421945529,1778362241000,-241.36707265,0.00024543,2]
[421945535,1778362241000,-1625.76,0.00024658,2]
[421945536,1778362241000,-152.33,0.00024658,2]
[421945532,1778362241000,-280.89,0.0002465,2]
[421945534,1778362241000,-1000.0,0.00024658,2]
[421945543,1778362241000,-548.0,0.00025,2]
[421945537,1778362241000,-151.99,0.00024658,2]
[421945540,1778362241000,-151.99,0.00024829,7]
[421945539,1778362241000,-152.33,0.00024829,7]
[421945533,1778362241000,-183.35,0.00024658,2]
[421945545,1778362241000,-220.0,0.00025,2]
[421945542,1778362241000,-8774.91963483,0.0002499,2]
[421945538,1778362241000,-1625.76,0.00024802,7]
[421945531,1778362241000,-164.01962126,0.00024543,2]
[421945544,1778362241000,-738.72680202,0.00025,2]
[421945547,1778362241000,-151.99,0.00025,30]
[421945558,1778362241000,-152.33,0.00025514,30]
[421945546,1778362241000,-152.33,0.00025,30]
[421945551,1778362241000,-152.33,0.00025171,2]
[421945557,1778362241000,-1625.76,0.00025378,30]
[421945554,1778362241000,-280.89,0.00025335,2]
[421945548,1778362241000,-503.0,0.00025036,2]
[421945549,1778362241000,-3068.75270181,0.00025071,2]
[421945553,1778362241000,-1625.76,0.00025234,7]
[421945556,1778362241000,-151.99,0.00025342,7]
[421945555,1778362241000,-152.33,0.00025342,7]
[421945505,1778362241000,-150.0,0.0002425,4]
[421945552,1778362241000,-151.99,0.00025171,2]
[421945541,1778362241000,-1625.76,0.00024946,30]
[421945526,1778362241000,-150.0,0.00024356,4]
[421945550,1778362241000,-1625.76,0.0002509,2]
[421945527,1778362241000,-503.0,0.00024397,2]
[421945530,1778362241000,-166.3111652,0.00024543,2]
[421945496,1778362241000,-150.0,0.00024171,4]
[421945503,1778362241000,-150.0,0.00024231,4]
[421945501,1778362241000,-34690.35260984,0.00024205,2]
[421945499,1778362241000,-150.0,0.00024197,4]
[421945500,1778362241000,-150.0,0.00024199,4]
[421945502,1778362241000,-150.0,0.00024224,4]
[421945507,1778362241000,-483.7392912,0.00024268,2]
[421945517,1778362241000,-150.0,0.00024356,4]
[421945518,1778362241000,-152.37653239,0.00024356,4]
[421945513,1778362241000,-373.524,0.00024306,2]
[421945509,1778362241000,-150.0,0.00024277,4]
[421945508,1778362241000,-150.0,0.00024272,4]
[421945510,1778362241000,-150.0,0.00024278,4]
[421945504,1778362241000,-150.0,0.00024234,4]
[421945511,1778362241000,-150.0,0.00024294,4]
[421945520,1778362241000,-151.53777203,0.00024356,4]
[421945528,1778362241000,-205.82,0.00024413,2]
[421945525,1778362241000,-150.0,0.00024356,4]
[421945524,1778362241000,-150.0,0.00024356,4]
[421945506,1778362241000,-150.0,0.00024255,4]
[421945523,1778362241000,-266.69127012,0.00024356,4]
[421945521,1778362241000,-234.1936752,0.00024356,4]
[421945519,1778362241000,-154.35788613,0.00024356,4]
[421945515,1778362241000,-3539.0,0.00024306,2]
[421945514,1778362241000,-6047.0,0.00024306,2]
[421945516,1778362241000,-150.0,0.0002433,4]
[421945512,1778362241000,-150.0,0.00024303,4]
[421945522,1778362241000,-155.15957424,0.00024356,4]
[421945599,1778362242000,-503.0,0.00026315,4]
[421945601,1778362242000,-156.95,0.00026319,30]
[421945596,1778362242000,-214.73073128,0.000263,30]
[421945595,1778362242000,-151.0,0.00026296,2]
[421945582,1778362242000,-168.81,0.00026161,2]
[421945597,1778362242000,-151.0,0.00026306,7]
[421945593,1778362242000,-1083.84,0.00026276,7]
[421945590,1778362242000,-1083.84,0.0002626,2]
[421945585,1778362242000,-152.33,0.00026198,2]
[421945584,1778362242000,-156.95,0.00026165,30]
[421945594,1778362242000,-1083.84,0.00026293,30]
[421945602,1778362242000,-1083.84,0.00026326,7]
[421945606,1778362242000,-156.95,0.0002637,2]
[421945600,1778362242000,-156.6,0.00026317,30]
[421945603,1778362242000,-1083.84,0.00026342,30]
[421945604,1778362242000,-1083.84,0.00026359,2]
[421945617,1778362242000,-1083.84,0.00026459,2]
[421945616,1778362242000,-1083.84,0.00026442,30]
[421945605,1778362242000,-156.6,0.00026369,2]
[421945608,1778362242000,-151.99,0.0002637,7]
[421945607,1778362242000,-152.33,0.0002637,7]
[421945609,1778362242000,-1083.84,0.00026376,7]
[421945611,1778362242000,-1083.84,0.00026392,30]
[421945610,1778362242000,-1625.76,0.00026388,2]
[421945588,1778362242000,-156.95,0.00026216,2]
[421945598,1778362242000,-1083.84,0.00026309,2]
[421945592,1778362242000,-156.95,0.00026267,7]
[421945571,1778362242000,-1625.76,0.00025955,2]
[421945583,1778362242000,-156.6,0.00026163,30]
[421945612,1778362242000,-1083.84,0.00026409,2]
[421945568,1778362242000,-151.99,0.00025856,7]
[421945565,1778362242000,-2056.63,0.00025786,2]
[421945563,1778362242000,-152.33,0.00025685,2]
[421945560,1778362242000,-1625.76,0.00025523,2]
[421945559,1778362242000,-151.99,0.00025514,30]
[421945567,1778362242000,-152.33,0.00025856,7]
[421945561,1778362242000,-1625.76,0.00025667,7]
[421945564,1778362242000,-151.99,0.00025685,2]
[421945569,1778362242000,-200.0,0.00025875,2]
[421945566,1778362242000,-1625.76,0.00025811,30]
[421945562,1778362242000,-503.0,0.00025675,3]
[421945591,1778362242000,-156.6,0.00026266,7]
[421945574,1778362242000,-151.99,0.00026027,30]
[421945581,1778362242000,-156.95,0.00026114,7]
[421945578,1778362242000,-1625.76,0.00026099,7]
[421945577,1778362242000,-34376.29544996,0.00026086,2]
[421945580,1778362242000,-156.6,0.00026111,7]
[421945576,1778362242000,-156.95,0.00026063,2]
[421945573,1778362242000,-152.33,0.00026027,30]
[421945572,1778362242000,-280.89,0.00026019,2]
[421945579,1778362242000,-214.73073128,0.000261,7]
[421945575,1778362242000,-156.6,0.0002606,2]
[421945586,1778362242000,-151.99,0.00026198,2]
[421945587,1778362242000,-156.6,0.00026214,2]
[421945589,1778362242000,-1625.76,0.00026243,30]
[421945570,1778362242000,-34690.35260984,0.00025936,2]
[421945613,1778362242000,-156.6,0.0002642,7]
[421945660,1778362242000,-151.0,0.000274,7]
[421945614,1778362242000,-156.95,0.00026421,7]
[421945642,1778362242000,-503.0,0.00026954,4]
[421945647,1778362242000,-1625.76,0.00027253,2]
[421945661,1778362242000,-151.0,0.000274,7]
[421945652,1778362242000,-219.24218767,0.00027397,2]
[421945651,1778362242000,-1625.86,0.00027397,7]
[421945657,1778362242000,-300.0,0.00027397,2]
[421945654,1778362242000,-1500.0,0.00027397,2]
[421945653,1778362242000,-200.0,0.00027397,2]
[421945650,1778362242000,-500.0,0.00027396,2]
[421945655,1778362242000,-1008.89,0.00027397,2]
[421945662,1778362242000,-4944.65,0.000274,2]
[421945656,1778362242000,-166.96429986,0.00027397,2]
[421945658,1778362242000,-183.35,0.00027397,2]
[421945671,1778362242000,-500.0,0.000278,7]
[421945659,1778362242000,-1000.0,0.00027397,20]
[421945665,1778362242000,-876.0,0.00027506,10]
[421945669,1778362242000,-219.24218766,0.00027671,2]
[421945668,1778362242000,-34690.35260984,0.00027666,2]
[421945670,1778362242000,-200.0,0.00027671,2]
[421945672,1778362242000,-317.0,0.00027864,5]
[421945667,1778362242000,-503.0,0.00027593,5]
[421945666,1778362242000,-817.0,0.00027506,10]
[421945663,1778362242000,-3068.7527018,0.00027443,2]
[421945664,1778362242000,-401.34,0.000275,2]
[421945673,1778362242000,-284.0,0.00027864,5]
[421945646,1778362242000,-1625.76,0.00027108,30]
[421945644,1778362242000,-1409.822275,0.00027,2]
[421945615,1778362242000,-1083.84,0.00026425,7]
[421945648,1778362242000,-6047.0,0.00027306,2]
[421945649,1778362242000,-3539.0,0.00027306,2]
[421945623,1778362242000,-156.6,0.00026523,2]
[421945621,1778362242000,-1083.84,0.00026492,30]
[421945619,1778362242000,-156.6,0.00026472,30]
[421945629,1778362242000,-1083.84,0.00026558,2]
[421945624,1778362242000,-156.95,0.00026524,2]
[421945620,1778362242000,-1083.84,0.00026475,7]
[421945622,1778362242000,-1083.84,0.00026508,2]
[421945626,1778362242000,-745.0,0.00026528,2]
[421945625,1778362242000,-1083.84,0.00026525,7]
[421945628,1778362242000,-1083.84,0.00026542,30]
[421945627,1778362242000,-1625.76,0.00026532,7]
[421945636,1778362242000,-150.0,0.00026682,2]
[421945618,1778362242000,-156.95,0.00026472,30]
[421945631,1778362242000,-156.96,0.00026575,7]
[421945640,1778362242000,-491.0,0.00026846,10]
[421945645,1778362242000,-500.0,0.00027107,2]
[421945643,1778362242000,-1625.76,0.00026964,7]
[421945637,1778362242000,-410.0,0.00026793,2]
[421945639,1778362242000,-1625.76,0.0002682,2]
[421945633,1778362242000,-1625.76,0.00026676,30]
[421945638,1778362242000,-399.0,0.00026793,2]
[421945630,1778362242000,-1083.9,0.00026575,7]
[421945632,1778362242000,-156.62,0.00026575,7]
[421945641,1778362242000,-400.0,0.000269,9]
[421945635,1778362242000,-150.0,0.00026682,2]
[421945634,1778362242000,-200.0,0.00026682,2]
[421945713,1778362243000,-500.0,0.00029863,2]
[421945729,1778362243000,-409.0,0.00029918,2]
[421945717,1778362243000,-199.9293781,0.00029863,2]
[421945718,1778362243000,-500.0,0.00029863,2]
[421945711,1778362243000,-500.0,0.00029863,2]
[421945715,1778362243000,-500.0,0.00029863,2]
[421945709,1778362243000,-500.0,0.00029863,2]
[421945708,1778362243000,-500.0,0.00029863,2]
[421945710,1778362243000,-500.0,0.00029863,2]
[421945704,1778362243000,-456.80933954,0.00029863,2]
[421945716,1778362243000,-500.0,0.00029863,2]
[421945728,1778362243000,-409.0,0.00029917,2]
[421945712,1778362243000,-500.0,0.00029863,2]
[421945730,1778362243000,-409.0,0.00029922,2]
[421945731,1778362243000,-409.0,0.00029951,2]
[421945720,1778362243000,-297.77652657,0.00029863,2]
[421945721,1778362243000,-409.0,0.00029867,2]
[421945723,1778362243000,-409.0,0.00029899,2]
[421945727,1778362243000,-409.0,0.00029917,2]
[421945722,1778362243000,-409.0,0.00029871,2]
[421945726,1778362243000,-409.0,0.00029916,2]
[421945725,1778362243000,-409.0,0.00029907,2]
[421945740,1778362243000,-163.0,0.0003,14]
[421945739,1778362243000,-1557.39242831,0.0003,2]
[421945734,1778362243000,-306.65744191,0.00029999,2]
[421945735,1778362243000,-500.0,0.00029999,2]
[421945714,1778362243000,-500.0,0.00029863,2]
[421945744,1778362243000,-700.0,0.0003007,2]
[421945733,1778362243000,-500.0,0.00029999,2]
[421945719,1778362243000,-219.19126393,0.00029863,2]
[421945706,1778362243000,-500.0,0.00029863,2]
[421945701,1778362243000,-500.0,0.00029863,2]
[421945707,1778362243000,-500.0,0.00029863,2]
[421945675,1778362243000,-200.0,0.00027948,2]
[421945674,1778362243000,-651.0,0.00027864,5]
[421945676,1778362243000,-214.73073128,0.00028,10]
[421945679,1778362243000,-503.0,0.00028232,6]
[421945738,1778362243000,-153.21483258,0.00029999,2]
[421945678,1778362243000,-200.0,0.00028227,2]
[421945677,1778362243000,-150.18,0.00028,2]
[421945681,1778362243000,-151.0,0.00028267,2]
[421945684,1778362243000,-1332.09768977,0.00028646,15]
[421945680,1778362243000,-163.20002808,0.00028246,2]
[421945683,1778362243000,-200.0,0.00028509,2]
[421945682,1778362243000,-34376.29544996,0.00028368,2]
[421945685,1778362243000,-503.0,0.00028871,6]
[421945687,1778362243000,-34690.35260984,0.00029397,2]
[421945686,1778362243000,-320.0,0.00029233,13]
[421945699,1778362243000,-500.0,0.00029863,2]
[421945692,1778362243000,-209.47586133,0.00029863,2]
[421945689,1778362243000,-152.0,0.00029709,30]
[421945700,1778362243000,-500.0,0.00029863,2]
[421945691,1778362243000,-150.0,0.00029863,2]
[421945702,1778362243000,-500.0,0.00029863,2]
[421945693,1778362243000,-150.0,0.00029863,2]
[421945690,1778362243000,-3068.7527018,0.00029815,2]
[421945694,1778362243000,-500.0,0.00029863,2]
[421945697,1778362243000,-500.0,0.00029863,2]
[421945695,1778362243000,-500.0,0.00029863,2]
[421945698,1778362243000,-500.0,0.00029863,2]
[421945696,1778362243000,-500.0,0.00029863,2]
[421945703,1778362243000,-500.0,0.00029863,2]
[421945705,1778362243000,-500.0,0.00029863,2]
[421945741,1778362243000,-409.0,0.00030025,2]
[421945688,1778362243000,-503.0,0.0002951,7]
[421945736,1778362243000,-216.82248144,0.00029999,2]
[421945774,1778362243000,-3539.0,0.00030306,2]
[421945776,1778362243000,-34376.29544996,0.00030651,2]
[421945773,1778362243000,-151.0,0.00030239,2]
[421945778,1778362243000,-539.0,0.00030846,30]
[421945775,1778362243000,-500.0,0.00030507,2]
[421945779,1778362243000,-735.0,0.00030846,30]
[421945781,1778362243000,-153.0,0.00030846,30]
[421945783,1778362243000,-34690.35260984,0.00031127,2]
[421945791,1778362243000,-151.0,0.00031145,7]
[421945787,1778362243000,-1537.0,0.00031145,7]
[421945784,1778362243000,-1537.0,0.00031145,7]
[421945788,1778362243000,-1537.0,0.00031145,7]
[421945786,1778362243000,-1537.0,0.00031145,7]
[421945789,1778362243000,-151.0,0.00031145,7]
[421945782,1778362243000,-200.0,0.00031096,2]
[421945785,1778362243000,-1537.0,0.00031145,7]
[421945790,1778362243000,-1169.58048992,0.00031145,7]
[421945795,1778362243000,-152.0,0.00031145,7]
[421945792,1778362243000,-151.0,0.00031145,7]
[421945793,1778362243000,-151.0,0.00031145,7]
[421945804,1778362243000,-1000.0,0.000315,7]
[421945800,1778362243000,-159.1169669,0.00031145,7]
[421945802,1778362243000,-437.4,0.00031244,2]
[421945798,1778362243000,-152.0,0.00031145,7]
[421945796,1778362243000,-152.0,0.00031145,7]
[421945801,1778362243000,-155.88401794,0.00031145,7]
[421945805,1778362243000,-163.0,0.00031644,14]
[421945799,1778362243000,-152.0,0.00031145,7]
[421945803,1778362243000,-503.0,0.00031427,9]
[421945737,1778362243000,-500.0,0.00029999,2]
[421945794,1778362243000,-172.77826956,0.00031145,7]
[421945771,1778362243000,-503.0,0.00030149,8]
[421945797,1778362243000,-152.0,0.00031145,7]
[421945777,1778362243000,-503.0,0.00030788,8]
[421945772,1778362243000,-300.0,0.000302,10]
[421945732,1778362243000,-409.0,0.0002996,2]
[421945743,1778362243000,-180.41646029,0.00030052,2]
[421945746,1778362243000,-409.0,0.00030076,2]
[421945756,1778362243000,-151.0,0.0003013,7]
[421945748,1778362243000,-672.0,0.000301,2]
[421945757,1778362243000,-1000.0,0.0003013,11]
[421945745,1778362243000,-700.0,0.0003007,2]
[421945747,1778362243000,-200.0,0.000301,10]
[421945752,1778362243000,-14047.45364857,0.0003013,2]
[421945751,1778362243000,-409.0,0.00030126,2]
[421945754,1778362243000,-202.64377534,0.0003013,2]
[421945750,1778362243000,-517.0,0.00030105,2]
[421945755,1778362243000,-22855.52678873,0.0003013,7]
[421945753,1778362243000,-204.57174598,0.0003013,2]
[421945742,1778362243000,-409.0,0.00030043,2]
[421945758,1778362243000,-1000.0,0.0003013,11]
[421945749,1778362243000,-1000.0,0.000301,2]
[421945766,1778362243000,-1000.0,0.0003013,11]
[421945770,1778362243000,-572.51225567,0.00030137,2]
[421945765,1778362243000,-1000.0,0.0003013,11]
[421945763,1778362243000,-1000.0,0.0003013,11]
[421945764,1778362243000,-1000.0,0.0003013,11]
[421945767,1778362243000,-158.8797288,0.0003013,11]
[421945759,1778362243000,-1000.0,0.0003013,11]
[421945761,1778362243000,-1000.0,0.0003013,11]
[421945769,1778362243000,-200.0,0.00030137,2]
[421945760,1778362243000,-1000.0,0.0003013,11]
[421945780,1778362243000,-207.0,0.00030846,30]
[421945768,1778362243000,-183.35,0.00030137,2]
[421945762,1778362243000,-1068.77663516,0.0003013,11]
[421945847,1778362244000,-735.0,0.00033846,30]
[421945838,1778362244000,-152.0,0.00033491,2]
[421945843,1778362244000,-316.91,0.00033589,120]
[421945839,1778362244000,-152.0,0.00033491,2]
[421945842,1778362244000,-153.53245003,0.00033491,2]
[421945841,1778362244000,-152.0,0.00033491,2]
[421945850,1778362244000,-2136.88833533,0.00033882,2]
[421945845,1778362244000,-2136.88833533,0.00033759,2]
[421945856,1778362244000,-151.0,0.00034182,7]
[421945854,1778362244000,-2136.88833533,0.00034136,2]
[421945840,1778362244000,-152.0,0.00033491,2]
[421945844,1778362244000,-1113.1,0.000336,7]
[421945848,1778362244000,-207.0,0.00033846,30]
[421945851,1778362244000,-2136.88833533,0.00033955,2]
[421945846,1778362244000,-539.0,0.00033846,30]
[421945853,1778362244000,-503.0,0.00033984,12]
[421945855,1778362244000,-2136.88833533,0.00034145,2]
[421945852,1778362244000,-2136.88833533,0.00033978,2]
[421945858,1778362244000,-2136.88833533,0.0003419,2]
[421945868,1778362244000,-2136.88833533,0.00034763,2]
[421945867,1778362244000,-284.66790989,0.00034639,60]
[421945857,1778362244000,-175.429,0.00034187,38]
[421945861,1778362244000,-2136.88833533,0.00034312,2]
[421945860,1778362244000,-1113.1,0.000343,7]
[421945831,1778362244000,-503.0,0.00033345,11]
[421945859,1778362244000,-2136.88833533,0.00034215,2]
[421945849,1778362244000,-153.0,0.00033846,30]
[421945829,1778362244000,-34376.29544996,0.00032933,2]
[421945820,1778362244000,-503.0,0.00032706,10]
[421945830,1778362244000,-570.692337,0.00033,14]
[421945863,1778362244000,-151.61,0.00034521,120]
[421945807,1778362244000,-735.0,0.00031846,30]
[421945808,1778362244000,-207.0,0.00031846,30]
[421945809,1778362244000,-153.0,0.00031846,30]
[421945806,1778362244000,-539.0,0.00031846,30]
[421945821,1778362244000,-539.0,0.00032846,30]
[421945823,1778362244000,-207.0,0.00032846,30]
[421945814,1778362244000,-151.0,0.0003221,5]
[421945818,1778362244000,-152.0,0.00032273,7]
[421945812,1778362244000,-316.91,0.00032192,120]
[421945811,1778362244000,-3068.7527018,0.00032187,2]
[421945815,1778362244000,-188.83,0.00032246,14]
[421945819,1778362244000,-152.0,0.00032311,7]
[421945822,1778362244000,-735.0,0.00032846,30]
[421945817,1778362244000,-188.82,0.00032246,14]
[421945813,1778362244000,-152.0,0.00032208,7]
[421945810,1778362244000,-503.0,0.00032067,10]
[421945816,1778362244000,-188.83,0.00032246,14]
[421945825,1778362244000,-34690.35260984,0.00032858,2]
[421945836,1778362244000,-152.0,0.00033491,2]
[421945833,1778362244000,-152.0,0.00033491,2]
[421945837,1778362244000,-152.0,0.00033491,2]
[421945834,1778362244000,-152.0,0.00033491,2]
[421945835,1778362244000,-152.0,0.00033491,2]
[421945826,1778362244000,-465.62,0.00032876,2]
[421945827,1778362244000,-183.35,0.00032877,2]
[421945824,1778362244000,-153.0,0.00032846,30]
[421945832,1778362244000,-152.0,0.00033491,2]
[421945865,1778362244000,-34690.35260984,0.00034588,2]
[421945877,1778362244000,-2136.88833533,0.00034871,2]
[421945866,1778362244000,-503.0,0.00034623,12]
[421945900,1778362244000,-500.0,0.00035616,7]
[421945905,1778362244000,-500.0,0.00035616,7]
[421945897,1778362244000,-155.39,0.00035616,60]
[421945904,1778362244000,-500.0,0.00035616,7]
[421945895,1778362244000,-2136.88833533,0.00035551,2]
[421945899,1778362244000,-500.0,0.00035616,7]
[421945912,1778362244000,-500.0,0.00035616,7]
[421945909,1778362244000,-500.0,0.00035616,7]
[421945917,1778362244000,-500.0,0.00035616,7]
[421945914,1778362244000,-500.0,0.00035616,7]
[421945911,1778362244000,-500.0,0.00035616,7]
[421945918,1778362244000,-500.0,0.00035616,7]
[421945906,1778362244000,-500.0,0.00035616,7]
[421945907,1778362244000,-500.0,0.00035616,7]
[421945908,1778362244000,-500.0,0.00035616,7]
[421945916,1778362244000,-500.0,0.00035616,7]
[421945913,1778362244000,-500.0,0.00035616,7]
[421945915,1778362244000,-500.0,0.00035616,7]
[421945910,1778362244000,-500.0,0.00035616,7]
[421945925,1778362244000,-500.0,0.00035616,7]
[421945922,1778362244000,-500.0,0.00035616,7]